bitfinex-derivatives/quotes_SOLF0:USTF0_20250808
["timestamp","ask_amount","ask_price","bid_price","bid_amount"]
[1754637757879,10.1536201,175.51,175.5,105.6]
[1754637758482,10.1536201,175.51,175.5,101.32363749]
[1754637759284,7.1236201,175.51,175.44,391.89481407]
[1754637759583,10.1536201,175.5,175.45,105.48]
[1754637759777,7.1236201,175.49,175.45,111.1786]
[1754637759986,10.1536201,175.48,175.45,111.1786]
[1754637760281,7.1236201,175.47,175.45,111.1786]
[1754637760485,7.1236201,175.46,175.45,111.1786]
[1754637762486,7.1236201,175.46,175.45,105.48]
[1754637762683,10.1536201,175.46,175.45,99.7777341]
[1754637762983,10.1536201,175.46,175.45,96.92660115]
[1754637768488,10.1536201,175.46,175.45,92.64902735]
[1754637768695,10.1536201,175.46,175.45,86.94559561]
[1754637769689,3.03,175.46,175.45,86.94559561]
[1754637773998,3.03,175.51,175.45,86.94559561]
[1754637776602,3.03,175.51,175.46,3.21601407]
[1754637777196,3.03,175.51,175.45,86.94559561]
[1754637777800,7.12853915,175.5,175.45,84.09417995]
[1754637778100,3.03,175.48,175.45,71.26280948]
[1754637778302,3.03,175.46,175.45,71.26280948]
[1754637778503,10.15853915,175.46,175.45,71.26280948]
[1754637778703,10.15853915,175.46,175.45,66.98541172]
[1754637779305,7.12853915,175.46,175.45,66.98541172]
[1754637780206,10.15853915,175.46,175.45,66.98541172]
[1754637781102,7.12853915,175.46,175.45,66.98541172]
[1754637784205,7.12853915,175.46,175.44,3.21601407]
[1754637784407,7.12853915,175.45,175.44,105.44]
[1754637785006,10.13853915,175.45,175.44,105.44]
[1754637787107,3.01,175.44,175.38,3.21601407]
[1754637787306,3.01,175.42,175.38,3.21601407]
[1754637787506,3.01,175.4,175.39,105.48]
[1754637787708,10.13853915,175.4,175.39,105.48]
[1754637788610,10.13853915,175.4,175.39,101.20180403]
[1754637788810,7.12853915,175.4,175.39,101.20180403]
[1754637789110,7.12853915,175.4,175.39,106.90240403]
[1754637789508,3.01,175.49,175.39,127.2278181]
[1754637789810,3.01,175.48,175.47,3.21601407]
[1754637790014,3.01,175.48,175.47,108.75601407]
[1754637790310,3.21601407,175.68,175.47,108.75601407]
[1754637790311,3.01,175.54,175.47,108.75601407]
[1754637790513,3.01,175.54,175.49,3.21601407]
[1754637790706,3.01,175.54,175.47,108.75601407]
[1754637791516,3.01,175.54,175.47,114.45391407]
[1754637791811,3.01,175.54,175.47,108.75601407]
[1754637792013,6.22601407,175.54,175.47,105.54]
[1754637792313,3.01,175.53,175.47,105.54]
[1754637792806,3.01,175.53,175.47,102.68869208]
[1754637793808,3.01,175.53,175.47,105.90470615]
[1754637794811,3.01,175.52,175.49,8.91321407]
[1754637795106,3.21601407,175.58,175.49,3.21601407]
[1754637795306,3.21601407,175.56,175.49,3.21601407]
[1754637795514,3.01,175.55,175.49,3.21601407]
[1754637795907,3.01,175.55,175.48,3.21601407]
[1754637796112,3.01,175.55,175.48,8.91371407]
[1754637796416,3.01,175.55,175.48,3.21601407]
[1754637797013,3.01,175.55,175.48,8.91351407]
[1754637797914,3.01,175.55,175.48,3.21601407]
[1754637800521,3.01,175.55,175.5,3.21601407]
[1754637801912,386.35601407,175.68,175.5,3.21601407]
[1754637802117,386.35601407,175.68,175.47,119.79869208]
[1754637802118,3.01,175.57,175.52,3.21601407]
[1754637803319,3.01,175.56,175.52,3.21601407]
[1754637803520,3.01,175.61,175.54,3.21601407]
[1754637806220,3.01,175.59,175.51,3.21601407]
[1754637806518,3.01,175.57,175.49,3.21601407]
[1754637806718,3.21601407,175.56,175.49,3.21601407]
[1754637806918,3.01,175.55,175.49,3.21601407]
[1754637807920,7.12716195,175.54,175.49,0.36514929]
[1754637808220,7.12716195,175.53,175.48,3.21601407]
[1754637808410,3.01,175.51,175.48,3.21601407]
[1754637808611,7.12716195,175.5,175.48,3.21601407]
[1754637808813,7.12716195,175.49,175.48,3.21601407]
[1754637809208,7.12716195,175.49,175.48,8.91371407]
[1754637809622,7.12716195,175.49,175.48,3.21601407]
[1754637810415,10.13716195,175.49,175.46,3.21601407]
[1754637810615,7.12716195,175.48,175.44,108.55601407]
[1754637810811,3.01,175.46,175.44,108.55601407]
[1754637811223,3.01,175.46,175.44,114.25491407]
[1754637811821,3.01,175.46,175.44,108.55601407]
[1754637812018,3.26,175.49,175.44,105.34]
[1754637813715,3.21601407,175.5,175.44,105.34]
[1754637814021,3.26,175.48,175.45,5.6985]
[1754637814220,5.45324907,175.47,175.44,108.55601407]
[1754637814419,3.26,175.48,175.44,108.55601407]
[1754637814420,5.45324907,175.46,175.44,108.55601407]
[1754637814625,5.45324907,175.45,175.44,114.25501407]
[1754637816525,5.45324907,175.45,175.44,108.55601407]
[1754637816725,8.71324907,175.45,175.44,108.55601407]
[1754637817729,5.45324907,175.45,175.44,114.25501407]
[1754637818138,5.45324907,175.45,175.44,104.2750223]
[1754637818936,5.45324907,175.45,175.44,98.5760223]
[1754637819135,8.71324907,175.45,175.44,98.5760223]
[1754637819437,8.71324907,175.45,175.44,95.36000823]
[1754637822939,8.71324907,175.45,175.44,92.50846385]
[1754637824138,8.71324907,175.45,175.44,86.80535409]
[1754637826339,8.71324907,175.45,175.44,79.67518728]
[1754637826541,3.26,175.44,175.4,105.36]
[1754637826740,3.26,175.42,175.4,105.36]
[1754637827043,8.71324907,175.41,175.4,105.36]
[1754637828043,8.71324907,175.41,175.4,101.08174286]
[1754637829243,3.26,175.41,175.4,101.08174286]
[1754637832345,3.26,175.41,175.37,108.57601407]
[1754637833546,3.26,175.41,175.37,105.36]
[1754637837341,3.21601407,175.4,175.37,105.36]
[1754637837645,3.26,175.39,175.37,105.36]
[1754637837944,7.13268081,175.38,175.37,98.57581415]
[1754637838141,10.39268081,175.38,175.37,71.4725926]
[1754637838340,10.39268081,175.38,175.37,69.34532213]
[1754637838951,7.13268081,175.38,175.37,69.34532213]
[1754637839453,7.13268081,175.38,175.37,75.04652213]
[1754637839852,7.13268081,175.38,175.37,69.34532213]
[1754637840052,10.39268081,175.38,175.37,69.34532213]
[1754637840949,3.26,175.37,175.34,3.21601407]
[1754637841150,7.13268081,175.36,175.32,3.21601407]
[1754637841353,10.39268081,175.35,175.31,105.38]
[1754637841546,3.26,175.33,175.3,108.59601407]
[1754637841850,10.42268081,175.32,175.3,108.59601407]
[1754637842055,7.13268081,175.31,175.3,108.59601407]
[1754637842651,7.13268081,175.31,175.3,114.29951407]
[1754637843058,7.13268081,175.31,175.3,108.59601407]
[1754637843358,7.13268081,175.31,175.3,114.29951407]
[1754637843661,7.13268081,175.31,175.3,108.59601407]
[1754637843847,10.42268081,175.31,175.3,108.59601407]
[1754637844047,7.13268081,175.31,175.3,108.59601407]
[1754637845058,7.13268081,175.31,175.3,114.29951407]
[1754637845659,3.29,175.4,175.3,131.40601407]
[1754637845956,3.29,175.4,175.36,3.21601407]
[1754637846352,3.29,175.4,175.35,105.38]
[1754637847359,3.21601407,175.39,175.3,8.91941407]
[1754637847558,3.29,175.38,175.32,105.38]
[1754637849161,3.29,175.38,175.32,101.10021742]
[1754637851664,3.29,175.38,175.32,106.80291742]
[1754637851857,3.29,175.38,175.32,101.09669567]
[1754637852060,3.29,175.38,175.32,95.39399567]
[1754637852966,3.29,175.38,175.32,98.24364292]
[1754637853263,3.29,175.38,175.32,92.54084292]
[1754637855667,3.29,175.38,175.32,98.24364292]
[1754637855964,3.29,175.38,175.32,92.54084292]
[1754637856166,3.29,175.36,175.32,92.54084292]
[1754637856566,3.29,175.34,175.32,92.54084292]
[1754637857064,3.29,175.34,175.29,216.12759792]
[1754637857266,3.29,175.34,175.29,327.21139792]
[1754637857567,5.67971124,175.33,175.29,321.50759792]
[1754637857766,3.29,175.31,175.29,321.50759792]
[1754637857962,5.67971124,175.3,175.29,315.80009583]
[1754637858369,3.29,175.31,175.29,315.80009583]
[1754637858968,3.29,175.31,175.29,321.50369583]
[1754637859168,3.29,175.31,175.29,315.80009583]
[1754637860074,3.29,175.31,175.29,321.50389583]
[1754637860572,4.09242138,175.3,175.29,321.50389583]
[1754637861370,3.29,175.31,175.29,321.50389583]
[1754637861570,3.29,175.31,175.29,315.80009583]
[1754637861769,3.29,175.3,175.29,315.80009583]
[1754637861967,3.29,175.3,175.29,321.50389583]
[1754637862270,3.29,175.34,175.29,315.80009583]
[1754637862770,3.29,175.34,175.29,321.50379583]
[1754637862970,3.29,175.34,175.29,315.80009583]
[1754637863572,3.29,175.34,175.29,321.50379583]
[1754637864672,3.21601407,175.35,175.29,315.80009583]
[1754637864871,3.29,175.32,175.29,105.38]
[1754637867472,3.29,175.31,175.29,105.38]
[1754637867667,3.21601407,175.31,175.24,20.32601407]
[1754637867867,10.42581948,175.3,175.25,105.38]
[1754637868069,7.13581948,175.29,175.25,75.40955818]
[1754637868268,10.42581948,175.28,175.25,75.40955818]
[1754637868472,3.29,175.26,175.25,75.40955818]
[1754637868769,10.42581948,175.26,175.25,75.40955818]
[1754637868975,10.42581948,175.26,175.23,105.38]
[1754637869173,3.29,175.24,175.23,105.38]
[1754637869371,7.13581948,175.24,175.23,111.0857]
[1754637869974,10.42581948,175.24,175.23,105.38]
[1754637871277,10.42581948,175.24,175.2,3.21601407]
[1754637871278,7.13581948,175.24,175.18,3.21601407]
[1754637871473,3.29,175.21,175.19,105.38]
[1754637871781,7.13581948,175.2,175.19,111.0871]
[1754637872974,3.31,175.27,175.19,128.19]
[1754637873278,3.31,175.29,175.26,3.21601407]
[1754637873478,3.31,175.33,175.27,105.38]
[1754637873777,3.31,175.31,175.27,105.38]
[1754637874078,3.31,175.31,175.27,99.67116641]
[1754637875775,3.31,175.33,175.27,99.67116641]
[1754637875982,3.31,175.35,175.29,3.21601407]
[1754637876583,3.31,175.38,175.31,3.21601407]
[1754637876881,3.31,175.38,175.32,5.7026]
[1754637877183,3.31,175.38,175.31,108.59601407]
[1754637877878,3.31,175.38,175.31,105.38]
[1754637878181,3.31,175.38,175.31,107.53163099]
[1754637879078,3.31,175.38,175.31,113.23473099]
[1754637879382,3.31,175.38,175.31,107.53163099]
[1754637879577,3.31,175.38,175.31,104.31561692]
[1754637879774,3.31,175.38,175.31,107.53163099]
[1754637880084,3.31,175.38,175.31,101.82466204]
[1754637881284,3.31,175.38,175.31,3.21601407]
[1754637881686,3.31,175.38,175.31,8.91911407]
[1754637882183,3.31,175.38,175.32,5.7026]
[1754637882590,3.31,175.38,175.33,3.21601407]
[1754637882788,3.31,175.38,175.33,8.91841407]
[1754637883086,3.31,175.38,175.33,0.36259097]
[1754637883586,3.31,175.38,175.3,108.59601407]
[1754637883790,6.52601407,175.42,175.34,3.21601407]
[1754637883982,3.31,175.41,175.34,3.21601407]
[1754637884891,6.2913243,175.4,175.34,3.21601407]
[1754637885094,6.2913243,175.39,175.34,3.21601407]
[1754637885393,3.31,175.36,175.34,8.91821407]
[1754637885691,6.2913243,175.35,175.34,8.91821407]
[1754637886094,6.2913243,175.35,175.34,3.21204096]
[1754637887596,3.31,175.42,175.34,17.11]
[1754637887897,3.31,175.42,175.39,3.21601407]
[1754637888197,3.31,175.42,175.4,8.91601407]
[1754637888390,3.31,175.44,175.4,3.21601407]
[1754637888698,3.31,175.43,175.4,8.91621407]
[1754637888889,3.31,175.43,175.4,3.21601407]
[1754637889491,3.31,175.47,175.38,104.29756758]
[1754637889692,3.31,175.47,175.39,3.21601407]
[1754637889995,3.31,175.47,175.39,8.91641407]
[1754637890197,3.31,175.46,175.39,8.91641407]
[1754637890898,3.31,175.46,175.41,3.21601407]
[1754637891099,3.31,175.44,175.41,3.21601407]
[1754637891401,3.31,175.47,175.41,3.21601407]
[1754637891600,3.31,175.47,175.39,3.21601407]
[1754637892402,3.31,175.47,175.41,3.21601407]
[1754637892998,3.31,175.47,175.41,8.91581407]
[1754637893199,3.31,175.47,175.41,3.21601407]
[1754637894805,5.6977,175.48,175.41,3.21601407]
[1754637894806,3.31,175.46,175.41,3.21601407]
[1754637894995,3.31,175.46,175.38,104.29756758]
[1754637895306,3.31,175.46,175.39,3.21601407]
[1754637896204,3.31,175.46,175.39,8.91651407]
[1754637896706,3.31,175.46,175.39,3.21601407]
[1754637896902,3.31,175.45,175.39,3.21601407]
[1754637897206,3.31,175.44,175.37,3.21601407]
[1754637897907,3.31,175.44,175.36,111.0015]
[1754637898111,6.52601407,175.44,175.36,93.18721965]
[1754637898305,6.52601407,175.44,175.36,87.48220589]
[1754637898610,3.31,175.43,175.36,87.48220589]
[1754637898907,3.31,175.43,175.37,5.7012]
[1754637899506,7.13128443,175.42,175.38,5.7009]
[1754637899712,10.44128443,175.41,175.38,3.21601407]
[1754637899907,7.13128443,175.4,175.38,3.21601407]
[1754637900103,7.13128443,175.39,175.38,8.91691407]
[1754637903309,7.13128443,175.39,175.38,14.61691407]
[1754637903509,3.03,175.44,175.43,5.6993]
[1754637903709,3.03,175.49,175.43,8.91531407]
[1754637903914,3.03,175.49,175.43,3.21601407]
[1754637904108,8.7275,175.49,175.44,8.91471407]
[1754637904306,3.03,175.48,175.44,8.91471407]
[1754637904714,3.03,175.48,175.44,3.21601407]
[1754637905215,3.03,175.48,175.44,8.91481407]
[1754637905415,3.03,175.48,175.44,3.21601407]
[1754637905714,3.03,175.47,175.42,3.21601407]
[1754637906208,3.03,175.47,175.41,105.28]
[1754637906911,3.03,175.46,175.37,17.11]
[1754637907216,3.03,175.45,175.38,108.47601407]
[1754637907616,3.03,175.45,175.39,5.7004]
[1754637907816,3.03,175.45,175.38,108.47601407]
[1754637908005,3.03,175.45,175.38,104.19778109]
[1754637908708,3.03,175.45,175.39,5.7006]
[1754637908914,3.03,175.45,175.38,104.19778109]
[1754637909214,3.03,175.45,175.38,109.89858109]
[1754637910413,8.7288,175.45,175.38,104.19778109]
[1754637910717,3.03,175.43,175.37,110.9612]
[1754637910916,3.03,175.43,175.37,105.26]
[1754637911117,3.03,175.43,175.38,5.7009]
[1754637912319,3.03,175.42,175.37,105.26]
[1754637912618,3.03,175.42,175.37,110.9611]
[1754637913214,3.03,175.4,175.37,102.40742815]
[1754637914521,3.21601407,175.39,175.33,5.7024]
[1754637914711,3.03,175.38,175.33,110.9624]
[1754637915117,3.03,175.38,175.33,105.26]
[1754637915311,6.24601407,175.38,175.33,105.26]
[1754637915517,3.03,175.37,175.33,105.26]
[1754637915724,3.03,175.35,175.33,105.26]
[1754637916022,8.32949185,175.34,175.33,105.26]
[1754637916516,8.32949185,175.34,175.33,99.55333235]
[1754637917014,5.29949185,175.34,175.31,213.97946396]
[1754637917317,8.32949185,175.33,175.31,213.97946396]
[1754637917617,8.32949185,175.32,175.31,213.97946396]
[1754637917818,8.32949185,175.32,175.31,219.68266396]
[1754637918018,5.29949185,175.32,175.31,215.40221587]
[1754637918518,8.32949185,175.32,175.31,215.40221587]
[1754637919124,8.32949185,175.32,175.31,209.69901587]
[1754637919416,5.29949185,175.32,175.31,209.69901587]
[1754637919920,5.29949185,175.32,175.31,215.40221587]
[1754637921219,8.32949185,175.32,175.31,215.40221587]
[1754637922026,8.32949185,175.32,175.31,209.69901587]
[1754637922625,8.32949185,175.32,175.31,209.69490964]
[1754637922927,8.32949185,175.32,175.31,203.99170964]
[1754637927124,8.32949185,175.32,175.31,209.69490964]
[1754637927320,5.29949185,175.32,175.31,209.69490964]
[1754637927721,3.03,175.32,175.31,209.69490964]
[1754637928023,8.39867927,175.32,175.3,105.28]
[1754637928224,5.36867927,175.31,175.3,105.28]
[1754637928725,5.36867927,175.31,175.3,105.27593699]
[1754637930129,8.39867927,175.31,175.3,105.27593699]
[1754637930429,3.03,175.3,175.29,105.28]
[1754637930619,8.39867927,175.3,175.29,105.28]
[1754637933836,5.36867927,175.3,175.29,108.49601407]
[1754637934030,5.36867927,175.3,175.29,114.19991407]
[1754637934335,5.36867927,175.3,175.29,131.30991407]
[1754637935434,3.28,175.4,175.29,134.52202814]
[1754637935736,3.28,175.4,175.39,3.21601407]
[1754637935931,3.28,175.48,175.39,108.49601407]
[1754637936131,3.28,175.46,175.39,108.49601407]
[1754637936429,3.28,175.46,175.39,105.28]
[1754637936624,3.28,175.44,175.39,105.28]
[1754637937224,3.28,175.43,175.39,105.28]
[1754637937637,3.28,175.43,175.39,110.9805]
[1754637937934,3.28,175.43,175.39,105.28]
[1754637938935,6.49601407,175.43,175.36,3.21601407]
[1754637939135,3.28,175.42,175.37,105.26]
[1754637939330,5.6999,175.41,175.37,105.26]
[1754637939635,3.28,175.4,175.35,105.26]
[1754637940530,3.28,175.41,175.36,3.21601407]
[1754637942936,3.28,175.41,175.36,8.91751407]
[1754637943234,3.28,175.4,175.38,3.21601407]
[1754637943439,3.28,175.4,175.39,110.9606]
[1754637943938,3.28,175.42,175.4,5.7002]
[1754637944133,3.28,175.42,175.4,8.91621407]
[1754637944332,3.28,175.42,175.4,3.21601407]
[1754637944534,3.28,175.44,175.41,5.6999]
[1754637944735,3.28,175.44,175.42,108.47601407]
[1754637945337,3.28,175.44,175.42,104.1978135]
[1754637945532,5.6971,175.5,175.42,104.1978135]
[1754637945736,3.28,175.46,175.44,3.21601407]
[1754637946037,3.28,175.45,175.44,3.21601407]
[1754637947338,7.97036595,175.45,175.44,8.91491407]
[1754637947538,7.97036595,175.45,175.44,3.21601407]
[1754637947728,4.69036595,175.45,175.44,3.21601407]
[1754637947932,3.28,175.44,175.43,3.21601407]
[1754637948234,7.97036595,175.44,175.43,3.21601407]
[1754637950235,4.69036595,175.44,175.43,8.91531407]
[1754637950438,4.69036595,175.44,175.43,5.6993]
[1754637950740,4.69036595,175.44,175.43,8.91531407]
[1754637953640,5.6972,175.5,175.43,8.91531407]
[1754637953641,3.28,175.53,175.43,26.02601407]
[1754637953829,3.28,175.53,175.52,3.21601407]
[1754637954031,3.28,175.53,175.52,108.43601407]
[1754637955342,3.28,175.53,175.52,104.15960477]
[1754637958040,3.28,175.53,175.52,101.30858673]
[1754637959043,3.28,175.53,175.52,107.00498673]
[1754637959643,3.28,175.53,175.52,101.30858673]
[1754637963752,3.28,175.53,175.51,105.16]
[1754637965447,4.34859016,175.52,175.51,100.88291177]
[1754637965652,7.56859016,175.52,175.51,100.88291177]
[1754637973265,7.56859016,175.52,175.51,98.03164217]
[1754637974460,4.34859016,175.52,175.51,98.03164217]
[1754637974765,7.56859016,175.52,175.51,98.03164217]
[1754637975362,7.56859016,175.52,175.51,93.75467565]
[1754637977966,7.35423676,175.52,175.51,93.75467565]
[1754637978261,3.22,175.52,175.51,93.75467565]
[1754637978465,7.35690143,175.52,175.51,93.75467565]
[1754637978668,3.22,175.52,175.51,93.75467565]
[1754637978968,7.35677079,175.52,175.51,93.75467565]
[1754637983271,4.13677079,175.52,175.51,93.75467565]
[1754637984272,3.22,175.51,175.5,105.12]
[1754637984476,7.35677079,175.51,175.5,105.12]
[1754637985375,7.35677079,175.51,175.5,100.84303593]
[1754637986878,3.22,175.5,175.44,3.21601407]
[1754637987074,3.22,175.48,175.42,3.21601407]
[1754637987279,7.35677079,175.47,175.45,105.12]
[1754637987479,4.13677079,175.46,175.45,105.12]
[1754637987981,3.22,175.47,175.45,105.12]
[1754637988373,3.22,175.49,175.45,105.12]
[1754637988576,3.22,175.48,175.45,105.12]
[1754637990880,3.22,175.5,175.45,105.12]
[1754637991082,3.22,175.49,175.45,105.12]
[1754637991379,3.22,175.48,175.45,105.12]
[1754637991674,3.22,175.5,175.45,105.12]
[1754637992383,8.9172,175.5,175.45,105.12]
[1754637992581,3.04,175.49,175.45,105.12]
[1754637993382,6.25601407,175.49,175.45,105.12]
[1754637993881,5.698,175.48,175.45,105.12]
[1754637994181,3.04,175.46,175.45,105.12]
[1754637995283,3.04,175.46,175.41,105.12]
[1754637995582,3.04,175.44,175.41,105.12]
[1754637996483,3.04,175.45,175.41,105.12]
[1754637997282,3.04,175.44,175.41,105.12]
[1754637997889,3.04,175.44,175.41,110.82]
[1754637999084,3.04,175.44,175.41,105.12]
[1754638000282,3.04,175.44,175.41,110.8199]
[1754638001486,3.04,175.46,175.41,110.8199]
[1754638001690,3.21601407,175.59,175.43,3.21601407]
[1754638001890,3.21601407,175.53,175.43,3.21601407]
[1754638002183,3.04,175.52,175.47,3.21601407]
[1754638002385,3.21601407,175.56,175.48,105.12]
[1754638002688,3.04,175.55,175.48,105.12]
[1754638002882,3.04,175.53,175.48,105.12]
[1754638003079,8.7363,175.53,175.48,105.12]
[1754638003278,3.04,175.52,175.48,105.12]
[1754638006781,3.04,175.54,175.48,105.12]
[1754638009991,8.7358,175.54,175.48,105.12]
[1754638010290,3.04,175.55,175.48,105.12]
[1754638010493,5.6963,175.53,175.48,105.12]
[1754638010692,3.04,175.52,175.48,105.12]
[1754638013295,5.6971,175.51,175.48,105.12]
[1754638013490,6.25601407,175.5,175.48,105.12]
[1754638013892,8.7374,175.49,175.48,105.12]
[1754638017995,3.04,175.49,175.48,105.12]
[1754638018503,6.25601407,175.49,175.48,105.12]
[1754638018906,11.95341407,175.49,175.48,105.12]
[1754638019404,6.25601407,175.49,175.48,105.12]
[1754638019805,11.95341407,175.49,175.48,105.12]
[1754638021204,6.25601407,175.49,175.48,105.12]
[1754638021404,3.25208265,175.51,175.48,105.12]
[1754638021606,3.04,175.49,175.48,105.12]
[1754638022905,6.25601407,175.49,175.48,105.12]
[1754638023207,11.95341407,175.49,175.48,105.12]
[1754638025107,6.25601407,175.49,175.48,105.12]
[1754638025503,3.04,175.49,175.48,105.12]
[1754638025704,3.17606858,175.51,175.48,105.12]
[1754638026608,3.14,175.5,175.48,105.12]
[1754638027801,3.14,175.49,175.41,17.11]
[1754638028005,3.14,175.47,175.42,105.06]
[1754638029206,0.03763902,175.46,175.42,105.06]
[1754638029410,3.14,175.45,175.42,105.06]
[1754638030415,5.73623902,175.46,175.42,105.06]
[1754638030614,3.14,175.44,175.42,105.06]
[1754638030904,3.14,175.43,175.42,105.06]
[1754638037807,3.14,175.43,175.38,383.34]
[1754638038005,3.14,175.43,175.39,105.06]
[1754638038415,3.14,175.43,175.4,105.04]
[1754638038916,3.14,175.43,175.38,383.34]
[1754638039116,3.14,175.43,175.39,105.06]
[1754638039615,3.21601407,175.44,175.39,105.06]
[1754638039815,3.14,175.43,175.39,105.06]
[1754638040413,3.14,175.42,175.39,105.06]
[1754638040711,3.14,175.41,175.39,105.06]
[1754638041018,3.14,175.4,175.39,105.06]
[1754638041714,3.14,175.42,175.39,105.06]
[1754638041915,3.14,175.43,175.39,105.06]
[1754638042615,3.14,175.42,175.39,105.06]
[1754638042916,3.14,175.42,175.39,110.7606]
[1754638043110,3.14,175.45,175.39,105.06]
[1754638043614,3.14,175.45,175.4,5.7]
[1754638043816,3.14,175.45,175.39,105.06]
[1754638044320,8.91371407,175.48,175.41,5.6999]
[1754638044511,8.91371407,175.48,175.42,105.04]
[1754638044713,3.14,175.45,175.42,105.04]
[1754638045216,3.14,175.45,175.42,110.7396]
[1754638045415,3.14,175.47,175.42,108.25601407]
[1754638045718,3.14,175.47,175.44,3.21601407]
[1754638045921,3.14,175.47,175.45,105.04]
[1754638046118,3.14,175.49,175.45,105.04]
[1754638046519,3.17699413,175.49,175.45,105.04]
[1754638051222,3.14,175.48,175.45,105.04]
[1754638051816,0.03699413,175.49,175.45,105.04]
[1754638051817,3.05,175.47,175.45,105.04]
[1754638052021,3.05,175.48,175.45,105.04]
[1754638052326,8.7478,175.48,175.45,105.04]
[1754638052623,3.05,175.48,175.45,105.04]
[1754638055226,0.03699413,175.49,175.47,3.21601407]
[1754638055420,0.03699413,175.49,175.48,105.0]
[1754638057128,3.08699413,175.49,175.48,105.0]
[1754638064125,8.9504082,175.49,175.41,20.34601407]
[1754638064324,3.05,175.48,175.42,104.98]
[1754638064529,3.05,175.48,175.43,5.699]
[1754638065631,3.05,175.5,175.45,5.6986]
[1754638065927,3.05,175.5,175.46,104.96]
[1754638066627,6.26601407,175.5,175.46,104.96]
[1754638066829,3.05,175.48,175.46,104.96]
[1754638067729,8.7479,175.48,175.46,104.96]
[1754638068032,3.05,175.47,175.46,104.96]
[1754638068235,8.7481,175.47,175.46,104.96]
[1754638068636,6.26601407,175.47,175.46,104.96]
[1754638071940,3.05,175.47,175.46,104.96]
[1754638074844,6.26601407,175.47,175.46,104.96]
[1754638075549,3.05,175.47,175.46,104.96]
[1754638075748,6.26601407,175.47,175.46,104.96]
[1754638078950,3.05,175.58,175.46,104.96]
[1754638079148,3.05,175.49,175.46,104.96]
[1754638079748,3.05,175.47,175.46,104.96]
[1754638080246,3.05,175.47,175.4,3.21601407]
[1754638080446,3.05,175.47,175.41,104.94]
[1754638082849,3.03,175.46,175.41,104.94]
[1754638083442,3.03,175.46,175.42,5.6996]
[1754638083641,3.21601407,175.48,175.41,104.94]
[1754638083845,3.03,175.45,175.41,104.94]
[1754638084144,3.21601407,175.48,175.41,122.07]
[1754638084348,6.24601407,175.49,175.41,122.07]
[1754638084651,3.21601407,175.49,175.42,3.21601407]
[1754638084946,3.03,175.48,175.42,3.21601407]
[1754638085251,3.03,175.48,175.43,5.6993]
[1754638085651,3.21601407,175.51,175.42,3.21601407]
[1754638085950,6.24601407,175.51,175.42,3.21601407]
[1754638086251,11.94311407,175.51,175.44,5.6989]
[1754638086452,3.03,175.5,175.45,104.92]
[1754638086945,3.03,175.49,175.45,104.92]
[1754638087548,3.03,175.48,175.45,104.92]
[1754638090856,3.03,175.48,175.42,8.91561407]
[1754638091057,3.03,175.48,175.43,104.9]
[1754638091850,8.7277,175.48,175.43,104.9]
[1754638092357,3.03,175.47,175.43,104.9]
[1754638095359,3.03,175.47,175.43,110.5993]
[1754638095858,3.03,175.46,175.43,110.5993]
[1754638096861,3.03,175.47,175.44,5.699]
[1754638097756,8.91321407,175.5,175.44,5.699]
[1754638097962,3.03,175.55,175.48,3.21601407]
[1754638098162,3.03,175.55,175.5,3.21601407]
[1754638098352,3.03,175.55,175.5,0.23225311]
[1754638098556,0.04115333,175.54,175.5,5.92925311]